Workbook

Sheet Übersicht
B4: Lindab GmbH
B5: Carl-Benz-Weg 18
B6: 22941 Bargteheide
B7: Tel. 04532-28590
B8: Fax: 04532-5666
B9: email: lindab@lindab.de
I10: gültig ab: 01.04.2023
C12: Lindab Preisliste 2023/24
B15: Mit Hilfe dieser Datei möchten wir Ihnen, ergänzend zur Preisliste 2023/24 in gedruckter Form oder als PDF, die Möglichkeit bieten, Ihre Einkaufskonditionen bei der
B16: Preisfindung mit zu berücksichtigen und so schneller Ihren Einkaufspreis für das ausgewählte Produkt zu erfahren.
B18: Zu Beginn müssen Sie einmalig Ihre Konditionen im Programm hinterlegen. Dazu wechseln Sie zum Tabellenblatt "Konditionen" und tragen dort die vereinbarten
B19: Rabatte ein. | C19: Zum Tabellenblatt Konditionen wechseln
B21: Im Tabellenblatt Preisliste wird dann zu jedem Artikel Ihr Einkaufspreis angezeigt. | F21: Zur Preisliste
B23: Mit Hilfe der Filter können Sie die Artikel nach Kategorie, oder Artikelkurzbezeichnung filtern, oder nutzen Sie die Suche-Funktion von Excel, wenn Ihnen
B24: die Artikelnummer bekannt ist.
B26: Schaltfläche* "Zur Bestelliste hinzufügen":
B27: Möchten Sie einen Artikel auswählen, markieren Sie bitte irgendeine Zelle in der Artikelzeile und drücken Sie die
B28: Schaltfläche, Sie müssen nur noch die gewünschte Stückzahl angeben und der Artikel wird in die Bestellliste" übernommen.
B29: Sie können das Tabellenblatt direkt per Email als Bestellung zu Lindab senden. *
C31: zur Bestellliste wechseln
B40: * Um die Schaltflächen benutzen zu können, müssen die Sicherheitseinstellungen von Excel die Ausführung von Makros zulassen. Sie können dies über
B41: >Extras/Makro/Sicherheit/Sicherheitsstufe< "mittel" oder "niedrig" (nicht empfohlen) anpassen.
B43: Bitte beachten Sie: Diese Excelpreisliste ist ein Werkzeug, dass bei einer einfachen Bestellung helfen soll. Die Datenbasis dient ausdrücklich nicht der Stammdatenpflege
B44: in Ihrer EDV. Bitte nutzen Sie zu diesem Zweck die separat zur Verfügung gestellte Preisliste im Datanormformat.

Sheet Konditionen
B10: Bitte tragen Sie in die nachfolgende Tabelle die Rabatte gemäß Ihrer aktuellen Konditionsbestätigung ein.
B12: In der Preisliste werden Ihnen dann zu jedem Artikel Ihre Netto-Einkaufspreise direkt angezeigt.
B14: zur Preisliste | C14: zurück zur Übersicht
B17: Preisgruppe | C17: Preisgruppenbezeichnung | D17: Rabatt 1 | E17: Zusatzrabatt 1 | F17: Zusatzrabatt 2 | G17: Rabatt gesamt
B18: 10 | C18: Rohre | D18: 0 | E18: 0 | F18: 0 | G18: =1-(1-D18)*(1-E18)*(1-F18) -> 0
B19: 11 | C19: Flex | D19: 0 | E19: 0 | F19: 0 | G19: =1-(1-D19)*(1-E19)*(1-F19) -> 0
B20: 30 | C20: LindabSafe Formteile | D20: 0 | E20: 0 | F20: 0 | G20: 0
B21: 31 | C21: Schalldämpfer flexibel | D21: 0 | E21: 0 | F21: 0 | G21: 0
B22: 35 | C22: Lindab Transfer | D22: 0 | E22: 0 | F22: 0 | G22: 0
B23: 37 | C23: Panelfilter und V-Zellen | D23: 0 | E23: 0 | F23: 0 | G23: 0
B24: 3702 | C24: Taschenfilter, Z-Linefilter, Rollenware | D24: 0 | E24: 0 | F24: 0 | G24: 0
B25: 53 | C25: Dachhauben | D25: 0 | E25: 0 | F25: 0 | G25: 0
B26: 60 | C26: Edelstahl | D26: 0 | E26: 0 | F26: 0 | G26: 0
B27: 65 | C27: Lindab Isol | D27: 0 | E27: 0 | F27: 0 | G27: 0
B28: 70 | C28: Lindab Comfort Luftauslässe | D28: 0 | E28: 0 | F28: 0 | G28: 0
B29: 80 | C29: Entrauchung | D29: 0 | E29: 0 | F29: 0 | G29: 0
B30: 8006 | C30: Brandschutzklappen und Zubehör | D30: 0 | E30: 0 | F30: 0 | G30: 0
B31: Netto | C31: Dienstleistungen & Zubehör | D31: 0 | E31: 0 | F31: 0 | G31: 0
B32: 7.SYS | C32: Systemair Ventilatoren und Zubehör | D32: 0 | E32: 0 | F32: 0 | G32: =1-(1-D32)*(1-E32)*(1-F32) -> 0
B33: 7.K | C33: Systemair MUB/T, RVK, REE,RTRD, RTRE | D33: 0 | E33: 0 | F33: 0 | G33: =1-(1-D33)*(1-E33)*(1-F33) -> 0
B34: 14.MS | C34: METU System | D34: 0 | E34: 0 | F34: 0 | G34: 0
B35: 14.REV | C35: METU Revisionsdeckel | D35: 0 | E35: 0 | F35: 0 | G35: 0
C37: Ihre Daten
C38: Kundennr.:
C39: Name:
C40: Ansprechpartner
C41: Str.:
C42: PLZ/Ort:
C43: Tel.:
C44: Fax:

Sheet Preisliste
B3: Lindab Preisliste 2023/24 | E3: gültig ab: 01.04.2023
F6: wechseln zu: | G6: Übersicht
G7: Konditionen
G8: Bestellliste
A11: Kategorie | B11: Kurzbezeichnung | C11: Artikelnummer | D11: Beschreibung 1 | E11: Beschreibung 2 | F11: Preisgruppe | G11: Preis brutto | H11: Preis netto
A12: Rohre | B12: SRDDIN | C12: SRDDIN100 | D12: Lindabrohr dicht SRDDIN 100 Meter | E12: nach DIN 24145 | F12: 10 | G12: 74.5 | H12: =G12*(1-VLOOKUP(F12,Konditionen!$B:$G,6,0)) -> 74.5
A13: Rohre | B13: SRDDIN | C13: SRDDIN1000 | D13: Lindabrohr dicht SRDDIN 1000 Meter | E13: nach DIN 24145 | F13: 10 | G13: 1217 | H13: =G13*(1-VLOOKUP(F13,Konditionen!$B:$G,6,0)) -> 1217
A14: Rohre | B14: SRDDIN | C14: SRDDIN112 | D14: Lindabrohr dicht SRDDIN 112 Meter | E14: nach DIN 24145 | F14: 10 | G14: 92.7 | H14: =G14*(1-VLOOKUP(F14,Konditionen!$B:$G,6,0)) -> 92.7
A15: Rohre | B15: SRDDIN | C15: SRDDIN1120 | D15: Lindabrohr dicht SRDDIN 1120 Meter | E15: nach DIN 24145 | F15: 10 | G15: 1362 | H15: =G15*(1-VLOOKUP(F15,Konditionen!$B:$G,6,0)) -> 1362
A16: Rohre | B16: SRDDIN | C16: SRDDIN125 | D16: Lindabrohr dicht SRDDIN 125 Meter | E16: nach DIN 24145 | F16: 10 | G16: 92.7 | H16: =G16*(1-VLOOKUP(F16,Konditionen!$B:$G,6,0)) -> 92.7
A17: Rohre | B17: SRDDIN | C17: SRDDIN1250 | D17: Lindabrohr dicht SRDDIN 1250 Meter | E17: nach DIN 24145 | F17: 10 | G17: 1521 | H17: =G17*(1-VLOOKUP(F17,Konditionen!$B:$G,6,0)) -> 1521
A18: Rohre | B18: SRDDIN | C18: SRDDIN140 | D18: Lindabrohr dicht SRDDIN 140 Meter | E18: nach DIN 24145 | F18: 10 | G18: 117.75 | H18: =G18*(1-VLOOKUP(F18,Konditionen!$B:$G,6,0)) -> 117.75
A19: Rohre | B19: SRDDIN | C19: SRDDIN150 | D19: Lindabrohr dicht SRDDIN 150 Meter | E19: nach DIN 24145 | F19: 10 | G19: 117.75 | H19: =G19*(1-VLOOKUP(F19,Konditionen!$B:$G,6,0)) -> 117.75
A20: Rohre | B20: SRDDIN | C20: SRDDIN160 | D20: Lindabrohr dicht SRDDIN 160 Meter | E20: nach DIN 24145 | F20: 10 | G20: 117.75 | H20: =G20*(1-VLOOKUP(F20,Konditionen!$B:$G,6,0)) -> 117.75
A21: Rohre | B21: SRDDIN | C21: SRDDIN180 | D21: Lindabrohr dicht SRDDIN 180 Meter | E21: nach DIN 24145 | F21: 10 | G21: 147.5 | H21: =G21*(1-VLOOKUP(F21,Konditionen!$B:$G,6,0)) -> 147.5
A22: Rohre | B22: SRDDIN | C22: SRDDIN200 | D22: Lindabrohr dicht SRDDIN 200 Meter | E22: nach DIN 24145 | F22: 10 | G22: 147.5 | H22: =G22*(1-VLOOKUP(F22,Konditionen!$B:$G,6,0)) -> 147.5
A23: Rohre | B23: SRDDIN | C23: SRDDIN224 | D23: Lindabrohr dicht SRDDIN 224 Meter | E23: nach DIN 24145 | F23: 10 | G23: 184.15 | H23: =G23*(1-VLOOKUP(F23,Konditionen!$B:$G,6,0)) -> 184.15
A24: Rohre | B24: SRDDIN | C24: SRDDIN250 | D24: Lindabrohr dicht SRDDIN 250 Meter | E24: nach DIN 24145 | F24: 10 | G24: 184.15 | H24: =G24*(1-VLOOKUP(F24,Konditionen!$B:$G,6,0)) -> 184.15
A25: Rohre | B25: SRDDIN | C25: SRDDIN280 | D25: Lindabrohr dicht SRDDIN 280 Meter | E25: nach DIN 24145 | F25: 10 | G25: 219.95 | H25: =G25*(1-VLOOKUP(F25,Konditionen!$B:$G,6,0)) -> 219.95
A26: Rohre | B26: SRDDIN | C26: SRDDIN300 | D26: Lindabrohr dicht SRDDIN 300 Meter | E26: nach DIN 24145 | F26: 10 | G26: 219.95 | H26: =G26*(1-VLOOKUP(F26,Konditionen!$B:$G,6,0)) -> 219.95
A27: Rohre | B27: SRDDIN | C27: SRDDIN315 | D27: Lindabrohr dicht SRDDIN 315 Meter | E27: nach DIN 24145 | F27: 10 | G27: 279 | H27: =G27*(1-VLOOKUP(F27,Konditionen!$B:$G,6,0)) -> 279
A28: Rohre | B28: SRDDIN | C28: SRDDIN355 | D28: Lindabrohr dicht SRDDIN 355 Meter | E28: nach DIN 24145 | F28: 10 | G28: 309.3 | H28: =G28*(1-VLOOKUP(F28,Konditionen!$B:$G,6,0)) -> 309.3
A29: Rohre | B29: SRDDIN | C29: SRDDIN400 | D29: Lindabrohr dicht SRDDIN 400 Meter | E29: nach DIN 24145 | F29: 10 | G29: 347.35 | H29: =G29*(1-VLOOKUP(F29,Konditionen!$B:$G,6,0)) -> 347.35
A30: Rohre | B30: SRDDIN | C30: SRDDIN450 | D30: Lindabrohr dicht SRDDIN 450 Meter | E30: nach DIN 24145 | F30: 10 | G30: 403.8 | H30: =G30*(1-VLOOKUP(F30,Konditionen!$B:$G,6,0)) -> 403.8
A31: Rohre | B31: SRDDIN | C31: SRDDIN500 | D31: Lindabrohr dicht SRDDIN 500 Meter | E31: nach DIN 24145 | F31: 10 | G31: 447.05 | H31: =G31*(1-VLOOKUP(F31,Konditionen!$B:$G,6,0)) -> 447.05
A32: Rohre | B32: SRDDIN | C32: SRDDIN560 | D32: Lindabrohr dicht SRDDIN 560 Meter | E32: nach DIN 24145 | F32: 10 | G32: 501.75 | H32: =G32*(1-VLOOKUP(F32,Konditionen!$B:$G,6,0)) -> 501.75
A33: Rohre | B33: SRDDIN | C33: SRDDIN600 | D33: Lindabrohr dicht SRDDIN 600 Meter | E33: nach DIN 24145 | F33: 10 | G33: 538.25 | H33: =G33*(1-VLOOKUP(F33,Konditionen!$B:$G,6,0)) -> 538.25
A34: Rohre | B34: SRDDIN | C34: SRDDIN630 | D34: Lindabrohr dicht SRDDIN 630 Meter | E34: nach DIN 24145 | F34: 10 | G34: 655.95 | H34: =G34*(1-VLOOKUP(F34,Konditionen!$B:$G,6,0)) -> 655.95
A35: Rohre | B35: SRDDIN | C35: SRDDIN710 | D35: Lindabrohr dicht SRDDIN 710 Meter | E35: nach DIN 24145 | F35: 10 | G35: 739.3 | H35: =G35*(1-VLOOKUP(F35,Konditionen!$B:$G,6,0)) -> 739.3
A36: Rohre | B36: SRDDIN | C36: SRDDIN800 | D36: Lindabrohr dicht SRDDIN 800 Meter | E36: nach DIN 24145 | F36: 10 | G36: 834.25 | H36: =G36*(1-VLOOKUP(F36,Konditionen!$B:$G,6,0)) -> 834.25
A37: Rohre | B37: SRDDIN | C37: SRDDIN900 | D37: Lindabrohr dicht SRDDIN 900 Meter | E37: nach DIN 24145 | F37: 10 | G37: 938.45 | H37: =G37*(1-VLOOKUP(F37,Konditionen!$B:$G,6,0)) -> 938.45
A38: Rohre | B38: SRDEN | C38: SRDEN100 | D38: Lindabrohr dicht SRD 100 Meter | E38: gem.DIN EN 12237 | F38: 10 | G38: 69.7 | H38: =G38*(1-VLOOKUP(F38,Konditionen!$B:$G,6,0)) -> 69.7
A39: Rohre | B39: SRDEN | C39: SRDEN1000 | D39: Lindabrohr dicht SRD 1000 Meter | E39: gem.DIN EN 12237, mit Doppelsicke | F39: 10 | G39: 1124 | H39: =G39*(1-VLOOKUP(F39,Konditionen!$B:$G,6,0)) -> 1124
A40: Rohre | B40: SRDEN | C40: SRDEN112 | D40: Lindabrohr dicht SRD 112 Meter | E40: gem.DIN EN 12237 | F40: 10 | G40: 85.7 | H40: =G40*(1-VLOOKUP(F40,Konditionen!$B:$G,6,0)) -> 85.7
A41: Rohre | B41: SRDEN | C41: SRDEN1120 | D41: Lindabrohr dicht SRD 1120 Meter | E41: gem.DIN EN 12237, mit Doppelsicke | F41: 10 | G41: 1227 | H41: =G41*(1-VLOOKUP(F41,Konditionen!$B:$G,6,0)) -> 1227
A42: Rohre | B42: SRDEN | C42: SRDEN125 | D42: Lindabrohr dicht SRD 125 Meter | E42: gem.DIN EN 12237 | F42: 10 | G42: 85.7 | H42: =G42*(1-VLOOKUP(F42,Konditionen!$B:$G,6,0)) -> 85.7
A43: Rohre | B43: SRDEN | C43: SRDEN1250 | D43: Lindabrohr dicht SRD 1250 Meter | E43: gem.DIN EN 12237, mit Doppelsicke | F43: 10 | G43: 1370 | H43: =G43*(1-VLOOKUP(F43,Konditionen!$B:$G,6,0)) -> 1370
A44: Rohre | B44: SRDEN | C44: SRDEN140 | D44: Lindabrohr dicht SRD 140 Meter | E44: gem.DIN EN 12237 | F44: 10 | G44: 109.65 | H44: =G44*(1-VLOOKUP(F44,Konditionen!$B:$G,6,0)) -> 109.65
A45: Rohre | B45: SRDEN | C45: SRDEN1400 | D45: Lindabrohr dicht SRD 1400 Meter | E45: gem.DIN EN 12237, mit Doppelsicke | F45: 10 | G45: 1752 | H45: =G45*(1-VLOOKUP(F45,Konditionen!$B:$G,6,0)) -> 1752
A46: Rohre | B46: SRDEN | C46: SRDEN150 | D46: Lindabrohr dicht SRD 150 Meter | E46: gem.DIN EN 12237 | F46: 10 | G46: 109.65 | H46: =G46*(1-VLOOKUP(F46,Konditionen!$B:$G,6,0)) -> 109.65
A47: Rohre | B47: SRDEN | C47: SRDEN1500 | D47: Lindabrohr dicht SRD 1500 Meter | E47: gem.DIN EN 12237, mit Doppelsicke | F47: 10 | G47: 1877 | H47: =G47*(1-VLOOKUP(F47,Konditionen!$B:$G,6,0)) -> 1877
A48: Rohre | B48: SRDEN | C48: SRDEN160 | D48: Lindabrohr dicht SRD 160 Meter | E48: gem.DIN EN 12237 | F48: 10 | G48: 109.65 | H48: =G48*(1-VLOOKUP(F48,Konditionen!$B:$G,6,0)) -> 109.65
A49: Rohre | B49: SRDEN | C49: SRDEN1600 | D49: Lindabrohr dicht SRD 1600 Meter | E49: gem.DIN EN 12237, mit Doppelsicke | F49: 10 | G49: 2001 | H49: =G49*(1-VLOOKUP(F49,Konditionen!$B:$G,6,0)) -> 2001
A50: Rohre | B50: SRDEN | C50: SRDEN180 | D50: Lindabrohr dicht SRD 180 Meter | E50: gem.DIN EN 12237 | F50: 10 | G50: 138.2 | H50: =G50*(1-VLOOKUP(F50,Konditionen!$B:$G,6,0)) -> 138.2
A51: Rohre | B51: SRDEN | C51: SRDEN200 | D51: Lindabrohr dicht SRD 200 Meter | E51: gem.DIN EN 12237 | F51: 10 | G51: 138.2 | H51: =G51*(1-VLOOKUP(F51,Konditionen!$B:$G,6,0)) -> 138.2
A52: Rohre | B52: SRDEN | C52: SRDEN224 | D52: Lindabrohr dicht SRD 224 Meter | E52: gem.DIN EN 12237 | F52: 10 | G52: 173.65 | H52: =G52*(1-VLOOKUP(F52,Konditionen!$B:$G,6,0)) -> 173.65
A53: Rohre | B53: SRDEN | C53: SRDEN250 | D53: Lindabrohr dicht SRD 250 Meter | E53: gem.DIN EN 12237, mit Doppelsicke | F53: 10 | G53: 173.65 | H53: =G53*(1-VLOOKUP(F53,Konditionen!$B:$G,6,0)) -> 173.65
A54: Rohre | B54: SRDEN | C54: SRDEN280 | D54: Lindabrohr dicht SRD 280 Meter | E54: gem.DIN EN 12237, mit Doppelsicke | F54: 10 | G54: 206.95 | H54: =G54*(1-VLOOKUP(F54,Konditionen!$B:$G,6,0)) -> 206.95
A55: Rohre | B55: SRDEN | C55: SRDEN300 | D55: Lindabrohr dicht SRD 300 Meter | E55: gem.DIN EN 12237, mit Doppelsicke | F55: 10 | G55: 206.95 | H55: =G55*(1-VLOOKUP(F55,Konditionen!$B:$G,6,0)) -> 206.95
A56: Rohre | B56: SRDEN | C56: SRDEN315 | D56: Lindabrohr dicht SRD 315 Meter | E56: gem.DIN EN 12237, mit Doppelsicke | F56: 10 | G56: 256.85 | H56: =G56*(1-VLOOKUP(F56,Konditionen!$B:$G,6,0)) -> 256.85
A57: Rohre | B57: SRDEN | C57: SRDEN355 | D57: Lindabrohr dicht SRD 355 Meter | E57: gem.DIN EN 12237, mit Doppelsicke | F57: 10 | G57: 285.05 | H57: =G57*(1-VLOOKUP(F57,Konditionen!$B:$G,6,0)) -> 285.05
A58: Rohre | B58: SRDEN | C58: SRDEN400 | D58: Lindabrohr dicht SRD 400 Meter | E58: gem.DIN EN 12237, mit Doppelsicke | F58: 10 | G58: 319.3 | H58: =G58*(1-VLOOKUP(F58,Konditionen!$B:$G,6,0)) -> 319.3
A59: Rohre | B59: SRDEN | C59: SRDEN450 | D59: Lindabrohr dicht SRD 450 Meter | E59: gem.DIN EN 12237, mit Doppelsicke | F59: 10 | G59: 359.9 | H59: =G59*(1-VLOOKUP(F59,Konditionen!$B:$G,6,0)) -> 359.9
A60: Rohre | B60: SRDEN | C60: SRDEN500 | D60: Lindabrohr dicht SRD 500 Meter | E60: gem.DIN EN 12237, mit Doppelsicke | F60: 10 | G60: 399.65 | H60: =G60*(1-VLOOKUP(F60,Konditionen!$B:$G,6,0)) -> 399.65
A61: Rohre | B61: SRDEN | C61: SRDEN560 | D61: Lindabrohr dicht SRD 560 Meter | E61: gem.DIN EN 12237, mit Doppelsicke | F61: 10 | G61: 448.25 | H61: =G61*(1-VLOOKUP(F61,Konditionen!$B:$G,6,0)) -> 448.25
A62: Rohre | B62: SRDEN | C62: SRDEN600 | D62: Lindabrohr dicht SRD 600 Meter | E62: gem.DIN EN 12237, mit Doppelsicke | F62: 10 | G62: 468.75 | H62: =G62*(1-VLOOKUP(F62,Konditionen!$B:$G,6,0)) -> 468.75
A63: Rohre | B63: SRDEN | C63: SRDEN630 | D63: Lindabrohr dicht SRD 630 Meter | E63: gem.DIN EN 12237, mit Doppelsicke | F63: 10 | G63: 606.75 | H63: =G63*(1-VLOOKUP(F63,Konditionen!$B:$G,6,0)) -> 606.75
A64: Rohre | B64: SRDEN | C64: SRDEN71 | D64: Lindabrohr dicht SRD 71 Meter | E64: gem.DIN EN 12237 | F64: 10 | G64: 56.35 | H64: =G64*(1-VLOOKUP(F64,Konditionen!$B:$G,6,0)) -> 56.35
A65: Rohre | B65: SRDEN | C65: SRDEN710 | D65: Lindabrohr dicht SRD 710 Meter | E65: gem.DIN EN 12237, mit Doppelsicke | F65: 10 | G65: 684.9 | H65: =G65*(1-VLOOKUP(F65,Konditionen!$B:$G,6,0)) -> 684.9
A66: Rohre | B66: SRDEN | C66: SRDEN80 | D66: Lindabrohr dicht SRD 80 Meter | E66: gem.DIN EN 12237 | F66: 10 | G66: 56.35 | H66: =G66*(1-VLOOKUP(F66,Konditionen!$B:$G,6,0)) -> 56.35
A67: Rohre | B67: SRDEN | C67: SRDEN800 | D67: Lindabrohr dicht SRD 800 Meter | E67: gem.DIN EN 12237, mit Doppelsicke | F67: 10 | G67: 753.6 | H67: =G67*(1-VLOOKUP(F67,Konditionen!$B:$G,6,0)) -> 753.6
A68: Rohre | B68: SRDEN | C68: SRDEN90 | D68: Lindabrohr dicht SRD 90 Meter | E68: gem.DIN EN 12237 | F68: 10 | G68: 68.65 | H68: =G68*(1-VLOOKUP(F68,Konditionen!$B:$G,6,0)) -> 68.65
A69: Rohre | B69: SRDEN | C69: SRDEN900 | D69: Lindabrohr dicht SRD 900 Meter | E69: gem.DIN EN 12237, mit Doppelsicke | F69: 10 | G69: 853.9 | H69: =G69*(1-VLOOKUP(F69,Konditionen!$B:$G,6,0)) -> 853.9
A70: Rohre | B70: SRDIN | C70: SRDIN100 | D70: Lindabrohr SRDIN 100 Meter | E70: nach DIN 24145 | F70: 10 | G70: 43.9 | H70: =G70*(1-VLOOKUP(F70,Konditionen!$B:$G,6,0)) -> 43.9
A71: Rohre | B71: SRDIN | C71: SRDIN1000 | D71: Lindabrohr SRDIN 1000 Meter | E71: nach DIN 24145 | F71: 10 | G71: 811.6 | H71: =G71*(1-VLOOKUP(F71,Konditionen!$B:$G,6,0)) -> 811.6
A72: Rohre | B72: SRDIN | C72: SRDIN112 | D72: Lindabrohr SRDIN 112 Meter | E72: nach DIN 24145 | F72: 10 | G72: 54.25 | H72: =G72*(1-VLOOKUP(F72,Konditionen!$B:$G,6,0)) -> 54.25
A73: Rohre | B73: SRDIN | C73: SRDIN1120 | D73: Lindabrohr SRDIN 1120 Meter | E73: nach DIN 24145 | F73: 10 | G73: 908.35 | H73: =G73*(1-VLOOKUP(F73,Konditionen!$B:$G,6,0)) -> 908.35
A74: Rohre | B74: SRDIN | C74: SRDIN125 | D74: Lindabrohr SRDIN 125 Meter | E74: nach DIN 24145 | F74: 10 | G74: 54.25 | H74: =G74*(1-VLOOKUP(F74,Konditionen!$B:$G,6,0)) -> 54.25
A75: Rohre | B75: SRDIN | C75: SRDIN1250 | D75: Lindabrohr SRDIN 1250 Meter | E75: nach DIN 24145 | F75: 10 | G75: 1014 | H75: =G75*(1-VLOOKUP(F75,Konditionen!$B:$G,6,0)) -> 1014
A76: Rohre | B76: SRDIN | C76: SRDIN140 | D76: Lindabrohr SRDIN 140 Meter | E76: nach DIN 24145 | F76: 10 | G76: 69.5 | H76: =G76*(1-VLOOKUP(F76,Konditionen!$B:$G,6,0)) -> 69.5
A77: Rohre | B77: SRDIN | C77: SRDIN150 | D77: Lindabrohr SRDIN 150 Meter | E77: nach DIN 24145 | F77: 10 | G77: 69.5 | H77: =G77*(1-VLOOKUP(F77,Konditionen!$B:$G,6,0)) -> 69.5
A78: Rohre | B78: SRDIN | C78: SRDIN160 | D78: Lindabrohr SRDIN 160 Meter | E78: nach DIN 24145 | F78: 10 | G78: 69.5 | H78: =G78*(1-VLOOKUP(F78,Konditionen!$B:$G,6,0)) -> 69.5
A79: Rohre | B79: SRDIN | C79: SRDIN180 | D79: Lindabrohr SRDIN 180 Meter | E79: nach DIN 24145 | F79: 10 | G79: 86.55 | H79: =G79*(1-VLOOKUP(F79,Konditionen!$B:$G,6,0)) -> 86.55
A80: Rohre | B80: SRDIN | C80: SRDIN200 | D80: Lindabrohr SRDIN 200 Meter | E80: nach DIN 24145 | F80: 10 | G80: 86.55 | H80: =G80*(1-VLOOKUP(F80,Konditionen!$B:$G,6,0)) -> 86.55
A81: Rohre | B81: SRDIN | C81: SRDIN224 | D81: Lindabrohr SRDIN 224 Meter | E81: nach DIN 24145 | F81: 10 | G81: 108.15 | H81: =G81*(1-VLOOKUP(F81,Konditionen!$B:$G,6,0)) -> 108.15
A82: Rohre | B82: SRDIN | C82: SRDIN250 | D82: Lindabrohr SRDIN 250 Meter | E82: nach DIN 24145 | F82: 10 | G82: 108.15 | H82: =G82*(1-VLOOKUP(F82,Konditionen!$B:$G,6,0)) -> 108.15
A83: Rohre | B83: SRDIN | C83: SRDIN280 | D83: Lindabrohr SRDIN 280 Meter | E83: nach DIN 24145 | F83: 10 | G83: 129.3 | H83: =G83*(1-VLOOKUP(F83,Konditionen!$B:$G,6,0)) -> 129.3
A84: Rohre | B84: SRDIN | C84: SRDIN300 | D84: Lindabrohr SRDIN 300 Meter | E84: nach DIN 24145 | F84: 10 | G84: 129.3 | H84: =G84*(1-VLOOKUP(F84,Konditionen!$B:$G,6,0)) -> 129.3
A85: Rohre | B85: SRDIN | C85: SRDIN315 | D85: Lindabrohr SRDIN 315 Meter | E85: nach DIN 24145 | F85: 10 | G85: 174.5 | H85: =G85*(1-VLOOKUP(F85,Konditionen!$B:$G,6,0)) -> 174.5
A86: Rohre | B86: SRDIN | C86: SRDIN355 | D86: Lindabrohr SRDIN 355 Meter | E86: nach DIN 24145 | F86: 10 | G86: 193.45 | H86: =G86*(1-VLOOKUP(F86,Konditionen!$B:$G,6,0)) -> 193.45
A87: Rohre | B87: SRDIN | C87: SRDIN400 | D87: Lindabrohr SRDIN 400 Meter | E87: nach DIN 24145 | F87: 10 | G87: 216.9 | H87: =G87*(1-VLOOKUP(F87,Konditionen!$B:$G,6,0)) -> 216.9
A88: Rohre | B88: SRDIN | C88: SRDIN450 | D88: Lindabrohr SRDIN 450 Meter | E88: nach DIN 24145 | F88: 10 | G88: 252.15 | H88: =G88*(1-VLOOKUP(F88,Konditionen!$B:$G,6,0)) -> 252.15
A89: Rohre | B89: SRDIN | C89: SRDIN500 | D89: Lindabrohr SRDIN 500 Meter | E89: nach DIN 24145 | F89: 10 | G89: 279.15 | H89: =G89*(1-VLOOKUP(F89,Konditionen!$B:$G,6,0)) -> 279.15
A90: Rohre | B90: SRDIN | C90: SRDIN560 | D90: Lindabrohr SRDIN 560 Meter | E90: nach DIN 24145 | F90: 10 | G90: 313.65 | H90: =G90*(1-VLOOKUP(F90,Konditionen!$B:$G,6,0)) -> 313.65
A91: Rohre | B91: SRDIN | C91: SRDIN600 | D91: Lindabrohr SRDIN 600 Meter | E91: nach DIN 24145 | F91: 10 | G91: 336.15 | H91: =G91*(1-VLOOKUP(F91,Konditionen!$B:$G,6,0)) -> 336.15
A92: Rohre | B92: SRDIN | C92: SRDIN630 | D92: Lindabrohr SRDIN 630 Meter | E92: nach DIN 24145 | F92: 10 | G92: 423.55 | H92: =G92*(1-VLOOKUP(F92,Konditionen!$B:$G,6,0)) -> 423.55
A93: Rohre | B93: SRDIN | C93: SRDIN710 | D93: Lindabrohr SRDIN 710 Meter | E93: nach DIN 24145 | F93: 10 | G93: 476.65 | H93: =G93*(1-VLOOKUP(F93,Konditionen!$B:$G,6,0)) -> 476.65
A94: Rohre | B94: SRDIN | C94: SRDIN800 | D94: Lindabrohr SRDIN 800 Meter | E94: nach DIN 24145 | F94: 10 | G94: 537.75 | H94: =G94*(1-VLOOKUP(F94,Konditionen!$B:$G,6,0)) -> 537.75
A95: Rohre | B95: SRDIN | C95: SRDIN900 | D95: Lindabrohr SRDIN 900 Meter | E95: nach DIN 24145 | F95: 10 | G95: 605.25 | H95: =G95*(1-VLOOKUP(F95,Konditionen!$B:$G,6,0)) -> 605.25
A96: Rohre | B96: SRENC | C96: SRENC100 | D96: Lindabrohr SR CLICK 100 Meter | E96: gem.DIN EN 12237 | F96: 10 | G96: 40.3 | H96: =G96*(1-VLOOKUP(F96,Konditionen!$B:$G,6,0)) -> 40.3
A97: Rohre | B97: SRENC | C97: SRENC1001200 | D97: Lindabrohr SR CLICK 100.1200 Stück | E97: gem.DIN EN 12237 | F97: 10 | G97: 48.35 | H97: =G97*(1-VLOOKUP(F97,Konditionen!$B:$G,6,0)) -> 48.35
A98: Rohre | B98: SRENC | C98: SRENC1002400 | D98: Lindabrohr SR CLICK 100.2400 Stück | E98: gem.DIN EN 12237 | F98: 10 | G98: 96.7 | H98: =G98*(1-VLOOKUP(F98,Konditionen!$B:$G,6,0)) -> 96.7
A99: Rohre | B99: SRENC | C99: SRENC1003000 | D99: Lindabrohr SR CLICK 100.3000 Stück | E99: gem.DIN EN 12237 | F99: 10 | G99: 120.9 | H99: =G99*(1-VLOOKUP(F99,Konditionen!$B:$G,6,0)) -> 120.9
A100: Rohre | B100: SRENC | C100: SRENC1006000 | D100: Lindabrohr SR CLICK 100.6000 Stück | E100: gem.DIN EN 12237 | F100: 10 | G100: 241.8 | H100: =G100*(1-VLOOKUP(F100,Konditionen!$B:$G,6,0)) -> 241.8
A101: Rohre | B101: SRENC | C101: SRENC112 | D101: Lindabrohr SR CLICK 112 Meter | E101: gem.DIN EN 12237 | F101: 10 | G101: 50.5 | H101: =G101*(1-VLOOKUP(F101,Konditionen!$B:$G,6,0)) -> 50.5
A102: Rohre | B102: SRENC | C102: SRENC1121200 | D102: Lindabrohr SR CLICK 112.1200 Stück | E102: gem.DIN EN 12237 | F102: 10 | G102: 60.6 | H102: =G102*(1-VLOOKUP(F102,Konditionen!$B:$G,6,0)) -> 60.6
A103: Rohre | B103: SRENC | C103: SRENC1122400 | D103: Lindabrohr SR CLICK 112.2400 Stück | E103: gem.DIN EN 12237 | F103: 10 | G103: 121.2 | H103: =G103*(1-VLOOKUP(F103,Konditionen!$B:$G,6,0)) -> 121.2
A104: Rohre | B104: SRENC | C104: SRENC1123000 | D104: Lindabrohr SR CLICK 112.3000 Stück | E104: gem.DIN EN 12237 | F104: 10 | G104: 151.5 | H104: =G104*(1-VLOOKUP(F104,Konditionen!$B:$G,6,0)) -> 151.5
A105: Rohre | B105: SRENC | C105: SRENC1126000 | D105: Lindabrohr SR CLICK 112.6000 Stück | E105: gem.DIN EN 12237 | F105: 10 | G105: 303 | H105: =G105*(1-VLOOKUP(F105,Konditionen!$B:$G,6,0)) -> 303
A106: Rohre | B106: SRENC | C106: SRENC125 | D106: Lindabrohr SR CLICK 125 Meter | E106: gem.DIN EN 12237 | F106: 10 | G106: 50.5 | H106: =G106*(1-VLOOKUP(F106,Konditionen!$B:$G,6,0)) -> 50.5
A107: Rohre | B107: SRENC | C107: SRENC1251200 | D107: Lindabrohr SR CLICK 125.1200 Stück | E107: gem.DIN EN 12237 | F107: 10 | G107: 60.6 | H107: =G107*(1-VLOOKUP(F107,Konditionen!$B:$G,6,0)) -> 60.6
A108: Rohre | B108: SRENC | C108: SRENC1252400 | D108: Lindabrohr SR CLICK 125.2400 Stück | E108: gem.DIN EN 12237 | F108: 10 | G108: 121.2 | H108: =G108*(1-VLOOKUP(F108,Konditionen!$B:$G,6,0)) -> 121.2
A109: Rohre | B109: SRENC | C109: SRENC1253000 | D109: Lindabrohr SR CLICK 125.3000 Stück | E109: gem.DIN EN 12237 | F109: 10 | G109: 151.5 | H109: =G109*(1-VLOOKUP(F109,Konditionen!$B:$G,6,0)) -> 151.5
A110: Rohre | B110: SRENC | C110: SRENC1256000 | D110: Lindabrohr SR CLICK 125.6000 Stück | E110: gem.DIN EN 12237 | F110: 10 | G110: 303 | H110: =G110*(1-VLOOKUP(F110,Konditionen!$B:$G,6,0)) -> 303
A111: Rohre | B111: SRENC | C111: SRENC140 | D111: Lindabrohr SR CLICK 140 Meter | E111: gem.DIN EN 12237 | F111: 10 | G111: 64.2 | H111: =G111*(1-VLOOKUP(F111,Konditionen!$B:$G,6,0)) -> 64.2
A112: Rohre | B112: SRENC | C112: SRENC1401200 | D112: Lindabrohr SR CLICK 140.1200 Stück | E112: gem.DIN EN 12237 | F112: 10 | G112: 77.05 | H112: =G112*(1-VLOOKUP(F112,Konditionen!$B:$G,6,0)) -> 77.05
A113: Rohre | B113: SRENC | C113: SRENC1402400 | D113: Lindabrohr SR CLICK 140.2400 Stück | E113: gem.DIN EN 12237 | F113: 10 | G113: 154.1 | H113: =G113*(1-VLOOKUP(F113,Konditionen!$B:$G,6,0)) -> 154.1
A114: Rohre | B114: SRENC | C114: SRENC1403000 | D114: Lindabrohr SR CLICK 140.3000 Stück | E114: gem.DIN EN 12237 | F114: 10 | G114: 192.6 | H114: =G114*(1-VLOOKUP(F114,Konditionen!$B:$G,6,0)) -> 192.6
A115: Rohre | B115: SRENC | C115: SRENC1406000 | D115: Lindabrohr SR CLICK 140.6000 Stück | E115: gem.DIN EN 12237 | F115: 10 | G115: 385.2 | H115: =G115*(1-VLOOKUP(F115,Konditionen!$B:$G,6,0)) -> 385.2
A116: Rohre | B116: SRENC | C116: SRENC150 | D116: Lindabrohr SR CLICK 150 Meter | E116: gem.DIN EN 12237 | F116: 10 | G116: 64.2 | H116: =G116*(1-VLOOKUP(F116,Konditionen!$B:$G,6,0)) -> 64.2
A117: Rohre | B117: SRENC | C117: SRENC1501200 | D117: Lindabrohr SR CLICK 150.1200 Stück | E117: gem.DIN EN 12237 | F117: 10 | G117: 77.05 | H117: =G117*(1-VLOOKUP(F117,Konditionen!$B:$G,6,0)) -> 77.05
A118: Rohre | B118: SRENC | C118: SRENC1502400 | D118: Lindabrohr SR CLICK 150.2400 Stück | E118: gem.DIN EN 12237 | F118: 10 | G118: 154.1 | H118: =G118*(1-VLOOKUP(F118,Konditionen!$B:$G,6,0)) -> 154.1
A119: Rohre | B119: SRENC | C119: SRENC1503000 | D119: Lindabrohr SR CLICK 150.3000 Stück | E119: gem.DIN EN 12237 | F119: 10 | G119: 192.6 | H119: =G119*(1-VLOOKUP(F119,Konditionen!$B:$G,6,0)) -> 192.6
A120: Rohre | B120: SRENC | C120: SRENC1506000 | D120: Lindabrohr SR CLICK 150.6000 Stück | E120: gem.DIN EN 12237 | F120: 10 | G120: 385.2 | H120: =G120*(1-VLOOKUP(F120,Konditionen!$B:$G,6,0)) -> 385.2
A121: Rohre | B121: SRENC | C121: SRENC160 | D121: Lindabrohr SR CLICK 160 Meter | E121: gem.DIN EN 12237 | F121: 10 | G121: 64.2 | H121: =G121*(1-VLOOKUP(F121,Konditionen!$B:$G,6,0)) -> 64.2
A122: Rohre | B122: SRENC | C122: SRENC1601200 | D122: Lindabrohr SR CLICK 160.1200 Stück | E122: gem.DIN EN 12237 | F122: 10 | G122: 77.05 | H122: =G122*(1-VLOOKUP(F122,Konditionen!$B:$G,6,0)) -> 77.05
A123: Rohre | B123: SRENC | C123: SRENC1602400 | D123: Lindabrohr SR CLICK 160.2400 Stück | E123: gem.DIN EN 12237 | F123: 10 | G123: 154.1 | H123: =G123*(1-VLOOKUP(F123,Konditionen!$B:$G,6,0)) -> 154.1
A124: Rohre | B124: SRENC | C124: SRENC1603000 | D124: Lindabrohr SR CLICK 160.3000 Stück | E124: gem.DIN EN 12237 | F124: 10 | G124: 192.6 | H124: =G124*(1-VLOOKUP(F124,Konditionen!$B:$G,6,0)) -> 192.6
A125: Rohre | B125: SRENC | C125: SRENC1606000 | D125: Lindabrohr SR CLICK 160.6000 Stück | E125: gem.DIN EN 12237 | F125: 10 | G125: 385.2 | H125: =G125*(1-VLOOKUP(F125,Konditionen!$B:$G,6,0)) -> 385.2
A126: Rohre | B126: SRENC | C126: SRENC180 | D126: Lindabrohr SR CLICK 180 Meter | E126: gem.DIN EN 12237 | F126: 10 | G126: 81.25 | H126: =G126*(1-VLOOKUP(F126,Konditionen!$B:$G,6,0)) -> 81.25
A127: Rohre | B127: SRENC | C127: SRENC1801200 | D127: Lindabrohr SR CLICK 180.1200 Stück | E127: gem.DIN EN 12237 | F127: 10 | G127: 97.5 | H127: =G127*(1-VLOOKUP(F127,Konditionen!$B:$G,6,0)) -> 97.5
A128: Rohre | B128: SRENC | C128: SRENC1802400 | D128: Lindabrohr SR CLICK 180.2400 Stück | E128: gem.DIN EN 12237 | F128: 10 | G128: 195 | H128: =G128*(1-VLOOKUP(F128,Konditionen!$B:$G,6,0)) -> 195
A129: Rohre | B129: SRENC | C129: SRENC1803000 | D129: Lindabrohr SR CLICK 180.3000 Stück | E129: gem.DIN EN 12237 | F129: 10 | G129: 243.75 | H129: =G129*(1-VLOOKUP(F129,Konditionen!$B:$G,6,0)) -> 243.75
A130: Rohre | B130: SRENC | C130: SRENC1806000 | D130: Lindabrohr SR CLICK 180.6000 Stück | E130: gem.DIN EN 12237 | F130: 10 | G130: 487.5 | H130: =G130*(1-VLOOKUP(F130,Konditionen!$B:$G,6,0)) -> 487.5
A131: Rohre | B131: SRENC | C131: SRENC200 | D131: Lindabrohr SR CLICK 200 Meter | E131: gem.DIN EN 12237 | F131: 10 | G131: 81.25 | H131: =G131*(1-VLOOKUP(F131,Konditionen!$B:$G,6,0)) -> 81.25
A132: Rohre | B132: SRENC | C132: SRENC2001200 | D132: Lindabrohr SR CLICK 200.1200 Stück | E132: gem.DIN EN 12237 | F132: 10 | G132: 97.5 | H132: =G132*(1-VLOOKUP(F132,Konditionen!$B:$G,6,0)) -> 97.5
A133: Rohre | B133: SRENC | C133: SRENC2002400 | D133: Lindabrohr SR CLICK 200.2400 Stück | E133: gem.DIN EN 12237 | F133: 10 | G133: 195 | H133: =G133*(1-VLOOKUP(F133,Konditionen!$B:$G,6,0)) -> 195
A134: Rohre | B134: SRENC | C134: SRENC2003000 | D134: Lindabrohr SR CLICK 200.3000 Stück | E134: gem.DIN EN 12237 | F134: 10 | G134: 243.75 | H134: =G134*(1-VLOOKUP(F134,Konditionen!$B:$G,6,0)) -> 243.75
A135: Rohre | B135: SRENC | C135: SRENC2006000 | D135: Lindabrohr SR CLICK 200.6000 Stück | E135: gem.DIN EN 12237 | F135: 10 | G135: 487.5 | H135: =G135*(1-VLOOKUP(F135,Konditionen!$B:$G,6,0)) -> 487.5
A136: Rohre | B136: SRENC | C136: SRENC224 | D136: Lindabrohr SR CLICK 224 Meter | E136: gem.DIN EN 12237 | F136: 10 | G136: 102.1 | H136: =G136*(1-VLOOKUP(F136,Konditionen!$B:$G,6,0)) -> 102.1
A137: Rohre | B137: SRENC | C137: SRENC2241200 | D137: Lindabrohr SR CLICK 224.1200 Stück | E137: gem.DIN EN 12237 | F137: 10 | G137: 122.5 | H137: =G137*(1-VLOOKUP(F137,Konditionen!$B:$G,6,0)) -> 122.5
A138: Rohre | B138: SRENC | C138: SRENC2242400 | D138: Lindabrohr SR CLICK 224.2400 Stück | E138: gem.DIN EN 12237 | F138: 10 | G138: 245.05 | H138: =G138*(1-VLOOKUP(F138,Konditionen!$B:$G,6,0)) -> 245.05
A139: Rohre | B139: SRENC | C139: SRENC2243000 | D139: Lindabrohr SR CLICK 224.3000 Stück | E139: gem.DIN EN 12237 | F139: 10 | G139: 306.3 | H139: =G139*(1-VLOOKUP(F139,Konditionen!$B:$G,6,0)) -> 306.3
A140: Rohre | B140: SRENC | C140: SRENC2246000 | D140: Lindabrohr SR CLICK 224.6000 Stück | E140: gem.DIN EN 12237 | F140: 10 | G140: 612.6 | H140: =G140*(1-VLOOKUP(F140,Konditionen!$B:$G,6,0)) -> 612.6
A141: Rohre | B141: SRENC | C141: SRENC250 | D141: Lindabrohr SR CLICK 250 Meter | E141: gem.DIN EN 12237 mit Doppelsicke | F141: 10 | G141: 102.1 | H141: =G141*(1-VLOOKUP(F141,Konditionen!$B:$G,6,0)) -> 102.1
A142: Rohre | B142: SRENC | C142: SRENC2501200 | D142: Lindabrohr SR CLICK 250.1200 Stück | E142: gem.DIN EN 12237 mit Doppelsicke | F142: 10 | G142: 122.5 | H142: =G142*(1-VLOOKUP(F142,Konditionen!$B:$G,6,0)) -> 122.5
A143: Rohre | B143: SRENC | C143: SRENC2502400 | D143: Lindabrohr SR CLICK 250.2400 Stück | E143: gem.DIN EN 12237 mit Doppelsicke | F143: 10 | G143: 245.05 | H143: =G143*(1-VLOOKUP(F143,Konditionen!$B:$G,6,0)) -> 245.05
A144: Rohre | B144: SRENC | C144: SRENC2503000 | D144: Lindabrohr SR CLICK 250.3000 Stück | E144: gem.DIN EN 12237 mit Doppelsicke | F144: 10 | G144: 306.3 | H144: =G144*(1-VLOOKUP(F144,Konditionen!$B:$G,6,0)) -> 306.3
A145: Rohre | B145: SRENC | C145: SRENC2506000 | D145: Lindabrohr SR CLICK 250.6000 Stück | E145: gem.DIN EN 12237 mit Doppelsicke | F145: 10 | G145: 612.6 | H145: =G145*(1-VLOOKUP(F145,Konditionen!$B:$G,6,0)) -> 612.6
A146: Rohre | B146: SRENC | C146: SRENC280 | D146: Lindabrohr SR CLICK 280 Meter | E146: gem.DIN EN 12237 mit Doppelsicke | F146: 10 | G146: 122 | H146: =G146*(1-VLOOKUP(F146,Konditionen!$B:$G,6,0)) -> 122
A147: Rohre | B147: SRENC | C147: SRENC2801200 | D147: Lindabrohr SR CLICK 280.1200 Stück | E147: gem.DIN EN 12237 mit Doppelsicke | F147: 10 | G147: 146.4 | H147: =G147*(1-VLOOKUP(F147,Konditionen!$B:$G,6,0)) -> 146.4
A148: Rohre | B148: SRENC | C148: SRENC2802400 | D148: Lindabrohr SR CLICK 280.2400 Stück | E148: gem.DIN EN 12237 mit Doppelsicke | F148: 10 | G148: 292.8 | H148: =G148*(1-VLOOKUP(F148,Konditionen!$B:$G,6,0)) -> 292.8
A149: Rohre | B149: SRENC | C149: SRENC2803000 | D149: Lindabrohr SR CLICK 280.3000 Stück | E149: gem.DIN EN 12237 mit Doppelsicke | F149: 10 | G149: 366 | H149: =G149*(1-VLOOKUP(F149,Konditionen!$B:$G,6,0)) -> 366
A150: Rohre | B150: SRENC | C150: SRENC2806000 | D150: Lindabrohr SR CLICK 280.6000 Stück | E150: gem.DIN EN 12237 mit Doppelsicke | F150: 10 | G150: 732 | H150: =G150*(1-VLOOKUP(F150,Konditionen!$B:$G,6,0)) -> 732
A151: Rohre | B151: SRENC | C151: SRENC300 | D151: Lindabrohr SR CLICK 300 Meter | E151: gem.DIN EN 12237 mit Doppelsicke | F151: 10 | G151: 122 | H151: =G151*(1-VLOOKUP(F151,Konditionen!$B:$G,6,0)) -> 122
A152: Rohre | B152: SRENC | C152: SRENC3001200 | D152: Lindabrohr SR CLICK 300.1200 Stück | E152: gem.DIN EN 12237 mit Doppelsicke | F152: 10 | G152: 146.4 | H152: =G152*(1-VLOOKUP(F152,Konditionen!$B:$G,6,0)) -> 146.4
A153: Rohre | B153: SRENC | C153: SRENC3002400 | D153: Lindabrohr SR CLICK 300.2400 Stück | E153: gem.DIN EN 12237 mit Doppelsicke | F153: 10 | G153: 292.8 | H153: =G153*(1-VLOOKUP(F153,Konditionen!$B:$G,6,0)) -> 292.8
A154: Rohre | B154: SRENC | C154: SRENC3003000 | D154: Lindabrohr SR CLICK 300.3000 Stück | E154: gem.DIN EN 12237 mit Doppelsicke | F154: 10 | G154: 366 | H154: =G154*(1-VLOOKUP(F154,Konditionen!$B:$G,6,0)) -> 366
A155: Rohre | B155: SRENC | C155: SRENC3006000 | D155: Lindabrohr SR CLICK 300.6000 Stück | E155: gem.DIN EN 12237 mit Doppelsicke | F155: 10 | G155: 732 | H155: =G155*(1-VLOOKUP(F155,Konditionen!$B:$G,6,0)) -> 732
A156: Rohre | B156: SRENC | C156: SRENC315 | D156: Lindabrohr SR CLICK 315 Meter | E156: gem.DIN EN 12237 mit Doppelsicke | F156: 10 | G156: 151.15 | H156: =G156*(1-VLOOKUP(F156,Konditionen!$B:$G,6,0)) -> 151.15
A157: Rohre | B157: SRENC | C157: SRENC3151200 | D157: Lindabrohr SR CLICK 315.1200 Stück | E157: gem.DIN EN 12237 mit Doppelsicke | F157: 10 | G157: 181.4 | H157: =G157*(1-VLOOKUP(F157,Konditionen!$B:$G,6,0)) -> 181.4
A158: Rohre | B158: SRENC | C158: SRENC3152400 | D158: Lindabrohr SR CLICK 315.2400 Stück | E158: gem.DIN EN 12237 mit Doppelsicke | F158: 10 | G158: 362.75 | H158: =G158*(1-VLOOKUP(F158,Konditionen!$B:$G,6,0)) -> 362.75
A159: Rohre | B159: SRENC | C159: SRENC3153000 | D159: Lindabrohr SR CLICK 315.3000 Stück | E159: gem.DIN EN 12237 mit Doppelsicke | F159: 10 | G159: 453.45 | H159: =G159*(1-VLOOKUP(F159,Konditionen!$B:$G,6,0)) -> 453.45
A160: Rohre | B160: SRENC | C160: SRENC3156000 | D160: Lindabrohr SR CLICK 315.6000 Stück | E160: gem.DIN EN 12237 mit Doppelsicke | F160: 10 | G160: 906.9 | H160: =G160*(1-VLOOKUP(F160,Konditionen!$B:$G,6,0)) -> 906.9
A161: Rohre | B161: SREN | C161: SREN100 | D161: Lindabrohr SR 100 Meter | E161: gem.DIN EN 12237 | F161: 10 | G161: 40.3 | H161: =G161*(1-VLOOKUP(F161,Konditionen!$B:$G,6,0)) -> 40.3
A162: Rohre | B162: SREN | C162: SREN1000 | D162: Lindabrohr SR 1000 Meter | E162: gem.DIN EN 12237, mit Doppelsicke | F162: 10 | G162: 725.35 | H162: =G162*(1-VLOOKUP(F162,Konditionen!$B:$G,6,0)) -> 725.35
A163: Rohre | B163: SREN | C163: SREN10003000 | D163: Lindabrohr SR 1000.3000 Stück | E163: gem.DIN EN 12237, mit Doppelsicke | F163: 10 | G163: 2176 | H163: =G163*(1-VLOOKUP(F163,Konditionen!$B:$G,6,0)) -> 2176
A164: Rohre | B164: SREN | C164: SREN10006000 | D164: Lindabrohr SR 1000.6000 Stück | E164: gem.DIN EN 12237, mit Doppelsicke | F164: 10 | G164: 4352 | H164: =G164*(1-VLOOKUP(F164,Konditionen!$B:$G,6,0)) -> 4352
A165: Rohre | B165: SREN | C165: SREN1001200 | D165: Lindabrohr SR 100.1200 Stück | E165: gem.DIN EN 12237 | F165: 10 | G165: 48.35 | H165: =G165*(1-VLOOKUP(F165,Konditionen!$B:$G,6,0)) -> 48.35
A166: Rohre | B166: SREN | C166: SREN1002400 | D166: Lindabrohr SR 100.2400 Stück | E166: gem.DIN EN 12237 | F166: 10 | G166: 96.7 | H166: =G166*(1-VLOOKUP(F166,Konditionen!$B:$G,6,0)) -> 96.7
A167: Rohre | B167: SREN | C167: SREN1003000 | D167: Lindabrohr SR 100.3000 Stück | E167: gem.DIN EN 12237 | F167: 10 | G167: 120.9 | H167: =G167*(1-VLOOKUP(F167,Konditionen!$B:$G,6,0)) -> 120.9
A168: Rohre | B168: SREN | C168: SREN1006000 | D168: Lindabrohr SR 100.6000 Stück | E168: gem.DIN EN 12237 | F168: 10 | G168: 241.8 | H168: =G168*(1-VLOOKUP(F168,Konditionen!$B:$G,6,0)) -> 241.8
A169: Rohre | B169: SREN | C169: SREN112 | D169: Lindabrohr SR 112 Meter | E169: gem.DIN EN 12237 | F169: 10 | G169: 50.5 | H169: =G169*(1-VLOOKUP(F169,Konditionen!$B:$G,6,0)) -> 50.5
A170: Rohre | B170: SREN | C170: SREN1120 | D170: Lindabrohr SR 1120 Meter | E170: gem.DIN EN 12237, mit Doppelsicke | F170: 10 | G170: 791.3 | H170: =G170*(1-VLOOKUP(F170,Konditionen!$B:$G,6,0)) -> 791.3
A171: Rohre | B171: SREN | C171: SREN11203000 | D171: Lindabrohr SR 1120.3000 Stück | E171: gem.DIN EN 12237, mit Doppelsicke | F171: 10 | G171: 2374 | H171: =G171*(1-VLOOKUP(F171,Konditionen!$B:$G,6,0)) -> 2374
A172: Rohre | B172: SREN | C172: SREN11206000 | D172: Lindabrohr SR 1120.6000 Stück | E172: gem.DIN EN 12237, mit Doppelsicke | F172: 10 | G172: 4748 | H172: =G172*(1-VLOOKUP(F172,Konditionen!$B:$G,6,0)) -> 4748
A173: Rohre | B173: SREN | C173: SREN1121200 | D173: Lindabrohr SR 112.1200 Stück | E173: gem.DIN EN 12237 | F173: 10 | G173: 60.6 | H173: =G173*(1-VLOOKUP(F173,Konditionen!$B:$G,6,0)) -> 60.6
A174: Rohre | B174: SREN | C174: SREN1122400 | D174: Lindabrohr SR 112.2400 Stück | E174: gem.DIN EN 12237 | F174: 10 | G174: 121.2 | H174: =G174*(1-VLOOKUP(F174,Konditionen!$B:$G,6,0)) -> 121.2
A175: Rohre | B175: SREN | C175: SREN1123000 | D175: Lindabrohr SR 112.3000 Stück | E175: gem.DIN EN 12237 | F175: 10 | G175: 151.5 | H175: =G175*(1-VLOOKUP(F175,Konditionen!$B:$G,6,0)) -> 151.5
A176: Rohre | B176: SREN | C176: SREN1126000 | D176: Lindabrohr SR 112.6000 Stück | E176: gem.DIN EN 12237 | F176: 10 | G176: 303 | H176: =G176*(1-VLOOKUP(F176,Konditionen!$B:$G,6,0)) -> 303
A177: Rohre | B177: SREN | C177: SREN125 | D177: Lindabrohr SR 125 Meter | E177: gem.DIN EN 12237 | F177: 10 | G177: 50.5 | H177: =G177*(1-VLOOKUP(F177,Konditionen!$B:$G,6,0)) -> 50.5
A178: Rohre | B178: SREN | C178: SREN1250 | D178: Lindabrohr SR 1250 Meter | E178: gem.DIN EN 12237, mit Doppelsicke | F178: 10 | G178: 883.45 | H178: =G178*(1-VLOOKUP(F178,Konditionen!$B:$G,6,0)) -> 883.45
A179: Rohre | B179: SREN | C179: SREN12503000 | D179: Lindabrohr SR 1250.3000 Stück | E179: gem.DIN EN 12237, mit Doppelsicke | F179: 10 | G179: 2650 | H179: =G179*(1-VLOOKUP(F179,Konditionen!$B:$G,6,0)) -> 2650
A180: Rohre | B180: SREN | C180: SREN12506000 | D180: Lindabrohr SR 1250.6000 Stück | E180: gem.DIN EN 12237, mit Doppelsicke | F180: 10 | G180: 5301 | H180: =G180*(1-VLOOKUP(F180,Konditionen!$B:$G,6,0)) -> 5301
A181: Rohre | B181: SREN | C181: SREN1251200 | D181: Lindabrohr SR 125.1200 Stück | E181: gem.DIN EN 12237 | F181: 10 | G181: 60.6 | H181: =G181*(1-VLOOKUP(F181,Konditionen!$B:$G,6,0)) -> 60.6
A182: Rohre | B182: SREN | C182: SREN1252400 | D182: Lindabrohr SR 125.2400 Stück | E182: gem.DIN EN 12237 | F182: 10 | G182: 121.2 | H182: =G182*(1-VLOOKUP(F182,Konditionen!$B:$G,6,0)) -> 121.2
A183: Rohre | B183: SREN | C183: SREN1253000 | D183: Lindabrohr SR 125.3000 Stück | E183: gem.DIN EN 12237 | F183: 10 | G183: 151.5 | H183: =G183*(1-VLOOKUP(F183,Konditionen!$B:$G,6,0)) -> 151.5
A184: Rohre | B184: SREN | C184: SREN1256000 | D184: Lindabrohr SR 125.6000 Stück | E184: gem.DIN EN 12237 | F184: 10 | G184: 303 | H184: =G184*(1-VLOOKUP(F184,Konditionen!$B:$G,6,0)) -> 303
A185: Rohre | B185: SREN | C185: SREN140 | D185: Lindabrohr SR 140 Meter | E185: gem.DIN EN 12237 | F185: 10 | G185: 64.2 | H185: =G185*(1-VLOOKUP(F185,Konditionen!$B:$G,6,0)) -> 64.2
A186: Rohre | B186: SREN | C186: SREN1400 | D186: Lindabrohr SR 1400 Meter | E186: gem.DIN EN 12237, mit Doppelsicke | F186: 10 | G186: 1168 | H186: =G186*(1-VLOOKUP(F186,Konditionen!$B:$G,6,0)) -> 1168
A187: Rohre | B187: SREN | C187: SREN1401200 | D187: Lindabrohr SR 140.1200 Stück | E187: gem.DIN EN 12237 | F187: 10 | G187: 77.05 | H187: =G187*(1-VLOOKUP(F187,Konditionen!$B:$G,6,0)) -> 77.05
A188: Rohre | B188: SREN | C188: SREN1402400 | D188: Lindabrohr SR 140.2400 Stück | E188: gem.DIN EN 12237 | F188: 10 | G188: 154.1 | H188: =G188*(1-VLOOKUP(F188,Konditionen!$B:$G,6,0)) -> 154.1
A189: Rohre | B189: SREN | C189: SREN1403000 | D189: Lindabrohr SR 140.3000 Stück | E189: gem.DIN EN 12237 | F189: 10 | G189: 192.6 | H189: =G189*(1-VLOOKUP(F189,Konditionen!$B:$G,6,0)) -> 192.6
A190: Rohre | B190: SREN | C190: SREN1406000 | D190: Lindabrohr SR 140.6000 Stück | E190: gem.DIN EN 12237 | F190: 10 | G190: 385.2 | H190: =G190*(1-VLOOKUP(F190,Konditionen!$B:$G,6,0)) -> 385.2
A191: Rohre | B191: SREN | C191: SREN150 | D191: Lindabrohr SR 150 Meter | E191: gem.DIN EN 12237 | F191: 10 | G191: 64.2 | H191: =G191*(1-VLOOKUP(F191,Konditionen!$B:$G,6,0)) -> 64.2
A192: Rohre | B192: SREN | C192: SREN1500 | D192: Lindabrohr SR 1500 Meter | E192: gem.DIN EN 12237, mit Doppelsicke | F192: 10 | G192: 1251 | H192: =G192*(1-VLOOKUP(F192,Konditionen!$B:$G,6,0)) -> 1251
A193: Rohre | B193: SREN | C193: SREN1501200 | D193: Lindabrohr SR 150.1200 Stück | E193: gem.DIN EN 12237 | F193: 10 | G193: 77.05 | H193: =G193*(1-VLOOKUP(F193,Konditionen!$B:$G,6,0)) -> 77.05
A194: Rohre | B194: SREN | C194: SREN1502400 | D194: Lindabrohr SR 150.2400 Stück | E194: gem.DIN EN 12237 | F194: 10 | G194: 154.1 | H194: =G194*(1-VLOOKUP(F194,Konditionen!$B:$G,6,0)) -> 154.1
A195: Rohre | B195: SREN | C195: SREN1503000 | D195: Lindabrohr SR 150.3000 Stück | E195: gem.DIN EN 12237 | F195: 10 | G195: 192.6 | H195: =G195*(1-VLOOKUP(F195,Konditionen!$B:$G,6,0)) -> 192.6
A196: Rohre | B196: SREN | C196: SREN1506000 | D196: Lindabrohr SR 150.6000 Stück | E196: gem.DIN EN 12237 | F196: 10 | G196: 385.2 | H196: =G196*(1-VLOOKUP(F196,Konditionen!$B:$G,6,0)) -> 385.2
A197: Rohre | B197: SREN | C197: SREN160 | D197: Lindabrohr SR 160 Meter | E197: gem.DIN EN 12237 | F197: 10 | G197: 64.2 | H197: =G197*(1-VLOOKUP(F197,Konditionen!$B:$G,6,0)) -> 64.2
A198: Rohre | B198: SREN | C198: SREN1600 | D198: Lindabrohr SR 1600 Meter | E198: gem.DIN EN 12237, mit Doppelsicke | F198: 10 | G198: 1334 | H198: =G198*(1-VLOOKUP(F198,Konditionen!$B:$G,6,0)) -> 1334
A199: Rohre | B199: SREN | C199: SREN1601200 | D199: Lindabrohr SR 160.1200 Stück | E199: gem.DIN EN 12237 | F199: 10 | G199: 77.05 | H199: =G199*(1-VLOOKUP(F199,Konditionen!$B:$G,6,0)) -> 77.05
A200: Rohre | B200: SREN | C200: SREN1602400 | D200: Lindabrohr SR 160.2400 Stück | E200: gem.DIN EN 12237 | F200: 10 | G200: 154.1 | H200: =G200*(1-VLOOKUP(F200,Konditionen!$B:$G,6,0)) -> 154.1
A201: Rohre | B201: SREN | C201: SREN1603000 | D201: Lindabrohr SR 160.3000 Stück | E201: gem.DIN EN 12237 | F201: 10 | G201: 192.6 | H201: =G201*(1-VLOOKUP(F201,Konditionen!$B:$G,6,0)) -> 192.6
A202: Rohre | B202: SREN | C202: SREN1606000 | D202: Lindabrohr SR 160.6000 Stück | E202: gem.DIN EN 12237 | F202: 10 | G202: 385.2 | H202: =G202*(1-VLOOKUP(F202,Konditionen!$B:$G,6,0)) -> 385.2
A203: Rohre | B203: SREN | C203: SREN180 | D203: Lindabrohr SR 180 Meter | E203: gem.DIN EN 12237 | F203: 10 | G203: 81.25 | H203: =G203*(1-VLOOKUP(F203,Konditionen!$B:$G,6,0)) -> 81.25
A204: Rohre | B204: SREN | C204: SREN1801200 | D204: Lindabrohr SR 180.1200 Stück | E204: gem.DIN EN 12237 | F204: 10 | G204: 97.5 | H204: =G204*(1-VLOOKUP(F204,Konditionen!$B:$G,6,0)) -> 97.5
A205: Rohre | B205: SREN | C205: SREN1802400 | D205: Lindabrohr SR 180.2400 Stück | E205: gem.DIN EN 12237 | F205: 10 | G205: 195 | H205: =G205*(1-VLOOKUP(F205,Konditionen!$B:$G,6,0)) -> 195
A206: Rohre | B206: SREN | C206: SREN1803000 | D206: Lindabrohr SR 180.3000 Stück | E206: gem.DIN EN 12237 | F206: 10 | G206: 243.75 | H206: =G206*(1-VLOOKUP(F206,Konditionen!$B:$G,6,0)) -> 243.75
... 4294 more rows

Sheet Bestellliste
C3: Bestellliste L2023/24
A4: Stand: 01.04.2022
A5: Datum; | B5: =NOW() -> 2023-02-07T15:11:17.780
A6: Firma/Kundennr: | B6: =CONCATENATE(Konditionen!D38," ",Konditionen!D39) ->  | C6: Lieferadresse: | F6: Lindab GmbH
A7: Ansprechpartner: | B7: =Konditionen!D40 -> 0 | F7: Carl-Benz-Weg 18, 22941 Bargteheide
A8: Str.: | B8: =Konditionen!D41 -> 0 | F8: Tel. 04532-28590
A9: Ort: | B9: =Konditionen!D42 -> 0 | F9: Fax: 04532-5666
A10: Tel.: | B10: =Konditionen!D43 -> 0 | F10: email: sales@lindab.de
A11: Fax: | B11: =Konditionen!D44 -> 0
A13: Position | B13: Artikelnummer | C13: Beschreibung 1 | D13: Beschreibung 2 | E13: Preisgruppe | F13: Preis brutto | G13: Preis netto | H13: Stück | I13: gesamt netto
